Workbook

Sheet Registro
A1: TITULO | B1: ESTUDIO DE IMPACTO AMBIENTAL: PROCEDIMIENTO Y HERRAMIENTAS
A3: AUTORES | B3: ROBERTO PECHE GONZALEZ
B4: DOLORES ENCINAS MALAGON
B5: ZURIÑE GOMEZ DE BALUGERA LOPEZ DE ALDA
B6: MARIA ARRITOKIETA ORTUZAR IRAGORRI
A8: ISBN: | B8: 978-84-613-9696-2

Sheet 1-3
A1: nº de indicador: | B1: 1 | C1: función de transformación: | D1: CA=-7,5E-05*I^2+1,75E-02*I | E1: 0<I<100
A2: Indicador: | B2: Índice de calidad del aire (ICAIRE)
A3: fórmula del indicador
A4: unidad del indicador: | B4: -
A5: rango de valores del indicador: | B5: 0 -100 | C5: valor del indicador | D5: 20
A6: Tipo de indicador | B6: 1 (T=0) | C6: calidad ambiental | D6: =IF(D5<0,"valor del indicador fuera de rango",IF(D5<=100,(-0.000075*(D5^2))+(0.0175*D5),"valor del indicador fuera rango")) -> 0.320
A7: valor del indicador | B7: calidad ambiental | C7: representación de la función de transformación
A8: 0 | B8: =-0.000075*(A8^2)+0.0175*A8 -> 0.000
A9: =A8+5 -> 5 | B9: =-0.000075*(A9^2)+0.0175*A9 -> 0.086
A10: 10 | B10: 0.168
A11: 15 | B11: 0.246
A12: 20 | B12: 0.320
A13: 25 | B13: 0.391
A14: 30 | B14: 0.458
A15: 35 | B15: 0.521
A16: 40 | B16: 0.580
A17: 45 | B17: 0.636
A18: 50 | B18: 0.688
A19: 55 | B19: 0.736
A20: 60 | B20: 0.780
A21: 65 | B21: 0.821
A22: 70 | B22: 0.858
A23: 75 | B23: 0.891
A24: 80 | B24: 0.920
A25: 85 | B25: 0.946
A26: 90 | B26: 0.968
A27: 95 | B27: 0.986
A28: 100 | B28: 1.000
A44: nº de indicador: | B44: 2 | C44: función de transformación: | D44: CA=(-0,0000966*I^2) -(0,00517*I) + 1 | E44: 0<I<50
A45: Indicador: | B45: Índice ORAQI (Oak Ridge Air Quality Index) | D45: CA=(0,0000912*I^2) -(0,0237*I) + 1,46 | E45: 50<I<100
A46: fórmula del indicador
A47: unidad del indicador: | B47: -
A48: rango de valores del indicador: | B48: 0 - 100 | C48: valor del indicador | D48: 55
A49: Tipo de indicador | B49: 1 (T=0) | C49: calidad ambiental | D49: =IF(D48<0,"valor del indicador fuera de rango",IF(D48<=50,-0.0000966*(D48^2)-(0.00517*D48)+1,IF(D48<=100,(0.0000912*(D48^2))-(0.0237*D48)+1.46,"valor del indicador fuera rango"))) -> 0.432
A50: valor del indicador | B50: calidad ambiental | C50: representación de la función de transformación
A51: 0 | B51: =-0.0000966*(A51^2)-(0.00517*A51)+1 -> 1.000
A52: =A51+5 -> 5 | B52: =-0.0000966*(A52^2)-(0.00517*A52)+1 -> 0.972
A53: =A52+5 -> 10 | B53: 0.939
A54: 15 | B54: 0.901
A55: 20 | B55: 0.858
A56: 25 | B56: 0.810
A57: 30 | B57: 0.758
A58: 35 | B58: 0.701
A59: 40 | B59: 0.639
A60: 45 | B60: 0.572
A61: 50 | B61: 0.500
A62: 55 | B62: =0.0000912*(A62^2)-0.0237*A62+1.46 -> 0.432
A63: 60 | B63: =0.0000912*(A63^2)-0.0237*A63+1.46 -> 0.366
A64: 65 | B64: 0.305
A65: 70 | B65: 0.248
A66: 75 | B66: 0.196
A67: 80 | B67: 0.148
A68: 85 | B68: 0.104
A69: 90 | B69: 0.066
A70: 95 | B70: 0.032
A71: 100 | B71: 0.002
A74: nº de indicador: | B74: 3 | C74: función de transformación: | D74: CA=-0,0139*I+1 | E74: 0<I<36
A75: Indicador: | B75: Índice de caracterización de tratamientos (ICT) | D75: CA=(-0,00526*I)+0,689 | E75: 36<I<131
A76: fórmula del indicador | D76: CA=0 | E76: 131<I<140
A77: unidad del indicador: | B77: -
A78: rango de valores del indicador: | B78: 0 - 140 | C78: valor del indicador | D78: 60
A79: Tipo de indicador | B79: 1 (T=0) | C79: calidad ambiental | D79: =IF(D78<0,"valor del indicador fuera de rango",IF(D78<=36,-0.0139*D78+1,IF(D78<=131,(-0.00526*D78)+0.689,IF(D78<=140,0,"valor del indicador fuera rango")))) -> 0.373
A80: valor del indicador | B80: calidad ambiental | C80: representación de la función de transformación
A81: 0 | B81: =-0.0139*A81+1 -> 1.000
A82: =A81+5 -> 5 | B82: =-0.0139*A82+1 -> 0.931
A83: 10 | B83: 0.861
A84: 15 | B84: 0.792
A85: 20 | B85: 0.722
A86: 25 | B86: 0.653
A87: 30 | B87: 0.583
A88: 35 | B88: 0.514
A89: 40 | B89: =-0.00526*A89+0.689 -> 0.479
A90: 45 | B90: =-0.00526*A90+0.689 -> 0.452
A91: 50 | B91: 0.426
A92: 55 | B92: 0.400
A93: 60 | B93: 0.373
A94: 65 | B94: 0.347
A95: 70 | B95: 0.321
A96: 75 | B96: 0.295
A97: 80 | B97: 0.268
A98: 85 | B98: 0.242
A99: 90 | B99: 0.216
A100: 95 | B100: 0.189
A101: 100 | B101: 0.163
A102: 105 | B102: 0.137
A103: 110 | B103: 0.110
A104: 115 | B104: 0.084
A105: 120 | B105: 0.058
A106: 125 | B106: 0.032
A107: 130 | B107: 0.005
A108: 135 | B108: 0.000
A109: 140 | B109: 0.000

Sheet 4-7
A1: nº de indicador: | B1: 4 | C1: función de transformación: | D1: CA=(-0,0036*I^2) -(0,00482*I) + 1 | E1: 0<I<10,9
A2: Indicador: | B2: Promedio diario de inmisión de CO | D2: CA=(0,00103*I^2) -(0,0689*I) + 1,15 | E2: 10,9<I<32
A3: fórmula del indicador | D3: CA=0 | E3: 32<I<34
A4: unidad del indicador: | B4: mg m-3
A5: rango de valores del indicador: | B5: 0 - 34 | C5: valor del indicador | D5: 11
A6: Tipo de indicador | B6: 2 (T=0,25) | C6: calidad ambiental | D6: =IF(D5<0,"valor del indicador fuera de rango",IF(D5<=10.9,-0.0036*(D5^2)-(0.00482*D5)+1,IF(D5<=32,(0.00103*(D5^2))-(0.0689*D5)+1.15,IF(D5<=34,0,"valor del indicador fuera rango")))) -> 0.517
A7: valor del indicador | B7: calidad ambiental | C7: representación de la función de transformación
A8: 0 | B8: =-0.0036*(A8^2)-(0.00482*A8)+1 -> 1.000
A9: =+A8+2 -> 2 | B9: 0.976
A10: =+A9+2 -> 4 | B10: 0.923
A11: 6 | B11: 0.841
A12: 8 | B12: 0.731
A13: 10 | B13: 0.592
A14: 12 | B14: =0.00103*(A14^2)-(0.0689*A14)+1.15 -> 0.472
A15: 14 | B15: 0.387
A16: 16 | B16: 0.311
A17: 18 | B17: 0.244
A18: 20 | B18: 0.184
A19: 22 | B19: 0.133
A20: 24 | B20: 0.090
A21: 26 | B21: 0.055
A22: 27 | B22: 0.041
A23: 28 | B23: 0.028
A24: 29 | B24: 0.018
A25: 30 | B25: 0.010
A26: 31 | B26: 0.004
A27: 32 | B27: =0.00103*(A27^2)-(0.0689*A27)+1.15 -> -0.000
A28: 33 | B28: =0 -> 0.000
A29: 34 | B29: =0 -> 0.000
A32: nº de indicador: | B32: 5 | C32: función de transformación: | D32: CA=(-0,0036*I^2) -(0,00482*I) + 1 | E32: 0<I<10,9
A33: Indicador: | B33: Ponderación del nivel diario de inmisión de CO según la superficie de zonas homogéneas | D33: CA=(0,00103*I^2) -(0,0689*I) + 1,15 | E33: 10,9<I<32
A34: fórmula del indicador | D34: CA=0 | E34: I>32
A35: unidad del indicador: | B35: mg m-3
A36: rango de valores del indicador: | B36: 0 - 34 | C36: valor del indicador | D36: 14
A37: Tipo de indicador | B37: 2 (T=0,25) | C37: calidad ambiental | D37: =IF(D36<0,"valor del indicador fuera de rango",IF(D36<=10.9,-0.0036*(D36^2)-(0.00482*D36)+1,IF(D36<=32,(0.00103*(D36^2))-(0.0689*D36)+1.15,IF(D36<=34,0,"valor del indicador fuera rango")))) -> 0.387
A38: valor del indicador | B38: calidad ambiental | C38: representación de la función de transformación
A39: 0 | B39: =-0.0036*(A39^2)-(0.00482*A39)+1 -> 1.000
A40: 2 | B40: 0.976
A41: 4 | B41: 0.923
A42: 6 | B42: 0.841
A43: 8 | B43: 0.731
A44: 10 | B44: 0.592
A45: 12 | B45: =0.00103*(A45^2)-(0.0689*A45)+1.15 -> 0.472
A46: =+A45+2 -> 14 | B46: =0.00103*(A46^2)-(0.0689*A46)+1.15 -> 0.387
A47: =+A46+2 -> 16 | B47: 0.311
A48: =+A47+2 -> 18 | B48: 0.244
A49: =+A48+2 -> 20 | B49: 0.184
A50: 21 | B50: 0.157
A51: 22 | B51: 0.133
A52: 23 | B52: 0.110
A53: 24 | B53: 0.090
A54: 25 | B54: 0.071
A55: 26 | B55: 0.055
A56: 27 | B56: 0.041
A57: 28 | B57: 0.028
A58: 29 | B58: 0.018
A59: 30 | B59: 0.010
A60: 31 | B60: 0.004
A61: 32 | B61: -0.000
A62: 33 | B62: 0.000
A63: 34 | B63: 0.000
A66: nº de indicador: | B66: 6 | C66: función de transformación: | D66: CA=(-0,0036*I^2) -(0,00482*I) + 1 | E66: 0<I<10,9
A67: Indicador: | B67: Ponderación del nivel diario de inmisión de CO según la población afectada en cada zona | D67: CA=(0,00103*I^2) -(0,0689*I) + 1,15 | E67: 10,9<I<32
A68: fórmula del indicador | D68: CA=0 | E68: 32<I<34
A69: unidad del indicador: | B69: mg m-3
A70: rango de valores del indicador: | B70: 0 - 34 | C70: valor del indicador | D70: 33
A71: Tipo de indicador | B71: 2 (T=0,25) | C71: calidad ambiental | D71: =IF(D70<0,"valor del indicador fuera de rango",IF(D70<=10.9,-0.0036*(D70^2)-(0.00482*D70)+1,IF(D70<=32,(0.00103*(D70^2))-(0.0689*D70)+1.15,IF(D70<34,0,"valor del indicador fuera rango")))) -> 0.000
A72: valor del indicador | B72: calidad ambiental | C72: representación de la función de transformación
A73: 0 | B73: =-0.0036*(A73^2)-(0.00482*A73)+1 -> 1.000
A74: 2 | B74: 0.976
A75: 4 | B75: 0.923
A76: 6 | B76: 0.841
A77: 8 | B77: 0.731
A78: 10 | B78: 0.592
A79: 11 | B79: =0.00103*(A79^2)-(0.0689*A79)+1.15 -> 0.517
A80: 12 | B80: 0.472
A81: 14 | B81: 0.387
A82: 18 | B82: 0.244
A83: 20 | B83: 0.184
A84: =+A83+2 -> 22 | B84: 0.133
A85: =+A84+1 -> 23 | B85: 0.110
A86: =+A87-1 -> 24 | B86: 0.090
A87: 25 | B87: 0.071
A88: 26 | B88: 0.055
A89: 27 | B89: 0.041
A90: 28 | B90: 0.028
A91: 29 | B91: 0.018
A92: 30 | B92: 0.010
A93: 31 | B93: 0.004
A94: 32 | B94: -0.000
A95: 32 | B95: 0.000
A96: 33 | B96: 0.000
A97: 34 | B97: 0.000
A100: nº de indicador: | B100: 7 | C100: función de transformación: | D100: CA= -0.01* I + 1 | E100: 0<I<100
A101: Indicador: | B101: % de personas afectadas por los niveles de CO perjudiciales
A102: fórmula del indicador
A103: unidad del indicador:
A104: rango de valores del indicador: | B104: 0 - 100 | C104: valor del indicador | D104: 20
A105: Tipo de indicador | B105: 2 (T=0,25) | C105: calidad ambiental | D105: =IF(D104<0,"valor del indicador fuera de rango",IF(D104<=100,-0.01*(D104)+1,"valor del indicador fuera rango")) -> 0.800
A106: valor del indicador | B106: calidad ambiental | C106: representación de la función de transformación
A107: 0 | B107: =-0.01*A107+1 -> 1.000
A108: =A107+5 -> 5 | B108: 0.950
A109: 10 | B109: 0.900
A110: 15 | B110: 0.850
A111: 20 | B111: 0.800
A112: 25 | B112: 0.750
A113: 30 | B113: 0.700
A114: 35 | B114: 0.650
A115: 40 | B115: 0.600
A116: 45 | B116: 0.550
A117: 50 | B117: 0.500
A118: 55 | B118: 0.450
A119: 60 | B119: 0.400
A120: 70 | B120: 0.300
A121: 80 | B121: 0.200
A122: 90 | B122: 0.100
A123: 100 | B123: 0.000

Sheet 8-11
A1: nº de indicador: | B1: 8 | C1: función de transformación: | D1: CA= -2,5E-0,5*I^2 - 2,21E-03 * I + 1 | E1: 0<I<104,5
A2: Indicador: | B2: Promedio diario de inmisión de NOx | D2: CA=1,51E-05*I^2-9,81E-03+1,36 | E2: 104,5<I<200
A3: fórmula del indicador
A4: unidad del indicador: | B4: mg m-3
A5: rango de valores del indicador: | B5: 0 - 200 | C5: valor del indicador | D5: 110
A6: Tipo de indicador | B6: 2 (T=0,25) | C6: calidad ambiental | D6: =IF(D5<0,"valor del indicador fuera de rango",IF(D5<=104.5,-0.000025*(D5^2)-(0.00221*D5)+1,IF(D5<=200,(0.0000151*(D5^2))-(0.00981*D5)+1.36,"valor del indicador fuera rango"))) -> 0.464
A7: valor del indicador | B7: calidad ambiental | C7: representación de la función de transformación
A8: 0 | B8: =-0.000025*(A8^2)-(0.00221*A8)+1 -> 1.000
A9: 10 | B9: =-0.000025*(A9^2)-(0.00221*A9)+1 -> 0.975
A10: 20 | B10: 0.946
A11: 30 | B11: 0.911
A12: 40 | B12: 0.872
A13: 50 | B13: 0.827
A14: 60 | B14: 0.777
A15: 70 | B15: 0.723
A16: 80 | B16: 0.663
A17: 90 | B17: 0.599
A18: 100 | B18: 0.529
A19: 105 | B19: =0.0000151*(A19^2)-(0.00981*A19)+1.36 -> 0.496
A20: 110 | B20: =0.0000151*(A20^2)-(0.00981*A20)+1.36 -> 0.464
A21: =+A20+10 -> 120 | B21: 0.400
A22: 130 | B22: 0.340
A23: 140 | B23: 0.283
A24: 150 | B24: 0.228
A25: 160 | B25: 0.177
A26: 170 | B26: 0.129
A27: 180 | B27: 0.083
A28: 190 | B28: 0.041
A29: 200 | B29: 0.002
A32: nº de indicador: | B32: 9 | C32: función de transformación: | D32: CA= -2,5E-0,5*I^2 - 2,21E-03 * I + 1 | E32: 0<I<104,5
A33: Indicador: | B33: Ponderación del nivel diario de inmisión de NOx según la superficie de zonas homogéneas | D33: CA=1,51E-05*I^2-9,81E-03+1,36 | E33: 104,5<I<200
A34: fórmula del indicador
A35: unidad del indicador: | B35: mg m-3
A36: rango de valores del indicador: | B36: 0 - 200 | C36: valor del indicador | D36: 40
A37: Tipo de indicador | B37: 2 (T=0,25) | C37: calidad ambiental | D37: =IF(D36<0,"valor del indicador fuera de rango",IF(D36<=104.5,-0.000025*(D36^2)-(0.00221*D36)+1,IF(D36<=200,(0.0000151*(D36^2))-(0.00981*D36)+1.36,"valor del indicador fuera rango"))) -> 0.872
A38: valor del indicador | B38: calidad ambiental | C38: representación de la función de transformación
A39: 0 | B39: =-0.000025*(A39^2)-(0.00221*A39)+1 -> 1.000
A40: 10 | B40: =-0.000025*(A40^2)-(0.00221*A40)+1 -> 0.975
A41: 20 | B41: 0.946
A42: 30 | B42: 0.911
A43: 40 | B43: 0.872
A44: 50 | B44: 0.827
A45: 60 | B45: 0.777
A46: 70 | B46: 0.723
A47: 80 | B47: 0.663
A48: 90 | B48: 0.599
A49: 100 | B49: 0.529
A50: 105 | B50: =0.0000151*(A50^2)-(0.00981*A50)+1.36 -> 0.496
A51: 110 | B51: =0.0000151*(A51^2)-(0.00981*A51)+1.36 -> 0.464
A52: 115 | B52: 0.432
A53: 120 | B53: 0.400
A54: 125 | B54: 0.370
A55: =+A54+10 -> 135 | B55: 0.311
A56: 145 | B56: 0.255
A57: 155 | B57: 0.202
A58: 165 | B58: 0.152
A59: 175 | B59: 0.106
A60: 185 | B60: 0.062
A61: =+A60+5 -> 190 | B61: 0.041
A62: =+A61+5 -> 195 | B62: 0.021
A63: =+A62+5 -> 200 | B63: 0.002
A66: nº de indicador: | B66: 10 | C66: función de transformación: | D66: CA= -2,5E-0,5*I^2 - 2,21E-03 * I + 1 | E66: 0<I<104,5
A67: Indicador: | B67: Ponderación del nivel diario de inmisión de NOx según la población afectada en cada zona | D67: CA=1,51E-05*I^2-9,81E-03+1,36 | E67: 104,5<I<200
A68: fórmula del indicador
A69: unidad del indicador: | B69: mg m-3
A70: rango de valores del indicador: | B70: 0 - 200 | C70: valor del indicador | D70: 110
A71: Tipo de indicador | B71: 2 (T=0,25) | C71: calidad ambiental | D71: =IF(D70<0,"valor del indicador fuera de rango",IF(D70<=104.5,-0.000025*(D70^2)-(0.00221*D70)+1,IF(D70<=200,(0.0000151*(D70^2))-(0.00981*D70)+1.36,"valor del indicador fuera rango"))) -> 0.464
A72: valor del indicador | B72: calidad ambiental | C72: representación de la función de transformación
A73: 0 | B73: =-0.000025*(A73^2)-(0.00221*A73)+1 -> 1.000
A74: 10 | B74: =-0.000025*(A74^2)-(0.00221*A74)+1 -> 0.975
A75: 20 | B75: 0.946
A76: 30 | B76: 0.911
A77: 40 | B77: 0.872
A78: 50 | B78: 0.827
A79: 60 | B79: 0.777
A80: 70 | B80: 0.723
A81: 80 | B81: 0.663
A82: 90 | B82: 0.599
A83: 100 | B83: 0.529
A84: 105 | B84: =0.0000151*(A84^2)-(0.00981*A84)+1.36 -> 0.496
A85: 110 | B85: =0.0000151*(A85^2)-(0.00981*A85)+1.36 -> 0.464
A86: 115 | B86: 0.432
A87: 120 | B87: 0.400
A88: 125 | B88: 0.370
A89: =+A88+10 -> 135 | B89: 0.311
A90: 145 | B90: 0.255
A91: 155 | B91: 0.202
A92: 165 | B92: 0.152
A93: 175 | B93: 0.106
A94: 185 | B94: 0.062
A95: =+A94+5 -> 190 | B95: 0.041
A96: =+A95+5 -> 195 | B96: 0.021
A97: =+A96+5 -> 200 | B97: 0.002
A100: nº de indicador: | B100: 11 | C100: función de transformación: | D100: CA= -0.01* I + 1 | E100: 0<I<100
A101: Indicador: | B101: % porcentaje de personas aceptadas por niveles de NO2 perjudiciales.
A102: fórmula del indicador
A103: unidad del indicador:
A104: rango de valores del indicador: | B104: 0 - 100 | C104: valor del indicador | D104: 10
A105: Tipo de indicador | B105: 2 (T=0,25) | C105: calidad ambiental | D105: =IF(D104<0,"valor del indicador fuera de rango",IF(D104<=100,-0.01*(D104)+1,"valor del indicador fuera rango")) -> 0.900
A106: valor del indicador | B106: calidad ambiental | C106: representación de la función de transformación
A107: 0 | B107: =-0.01*A107+1 -> 1.000
A108: 2 | B108: 0.980
A109: 4 | B109: 0.960
A110: 6 | B110: 0.940
A111: 8 | B111: 0.920
A112: 10 | B112: 0.900
A113: 15 | B113: 0.850
A114: 20 | B114: 0.800
A115: 25 | B115: 0.750
A116: 30 | B116: 0.700
A117: 40 | B117: 0.600
A118: 50 | B118: 0.500
A119: 60 | B119: 0.400
A120: 70 | B120: 0.300
A121: 80 | B121: 0.200
A122: 90 | B122: 0.100
A123: 100 | B123: 0.000

Sheet 12-15
A1: nº de indicador: | B1: 12 | C1: función de transformación: | D1: CA=(2,3E-06*I2)-(3,05E-03*I) +1 | E1: 0<I<400
A2: Indicador: | B2: Promedio diario del nivel de inmisión de SO2 | D2: CA=(1,22E-06*I2) - (3,05E-03*I) + 0,702 | E2: 400<I<600
A3: fórmula del indicador | D3: CA=0 | E3: 600<I<800
A4: unidad del indicador: | B4: mg m-3
A5: rango de valores del indicador: | B5: 0 - 800 | C5: valor del indicador | D5: 400
A6: Tipo de indicador | B6: 2 (T=0,25) | C6: calidad ambiental | D6: =IF(D5<0,"valor del indicador fuera de rango",IF(D5<=400,0.0000023*(D5^2)-(0.00305*D5)+1,IF(D5<=600,(0.00000122*(D5^2))-(0.00187*D5)+0.702, IF(D5<800, 0, "valor del indicador fuera del rango")))) -> 0.148
A7: valor del indicador | B7: calidad ambiental | C7: representación de la función de transformación
A8: 0 | B8: =((0.0000023*((A8)^2))-(0.00305*(A8))+1) -> 1.000
A9: =+A8+40 -> 40 | B9: =((0.0000023*((A9)^2))-(0.00305*(A9))+1) -> 0.882
A10: =+A9+40 -> 80 | B10: 0.771
A11: 120 | B11: 0.667
A12: 160 | B12: 0.571
A13: 200 | B13: 0.482
A14: 240 | B14: 0.400
A15: 280 | B15: 0.326
A16: 320 | B16: 0.260
A17: 360 | B17: 0.200
A18: 400 | B18: 0.148
A19: 440 | B19: =(0.00000122*(A19^2))-(0.00187*A19)+0.702 -> 0.115
A20: 480 | B20: =(0.00000122*(A20^2))-(0.00187*A20)+0.702 -> 0.085
A21: 520 | B21: =(0.00000122*(A21^2))-(0.00187*A21)+0.702 -> 0.059
A22: 560 | B22: =(0.00000122*(A22^2))-(0.00187*A22)+0.702 -> 0.037
A23: 600 | B23: =(0.00000122*(A23^2))-(0.00187*A23)+0.702 -> 0.019
A24: 640 | B24: 0.000
A25: =+A24+40 -> 680 | B25: 0.000
A26: =+A25+40 -> 720 | B26: 0.000
A27: =+A26+40 -> 760 | B27: 0.000
A28: 780 | B28: 0.000
A29: 800 | B29: 0.000
A32: nº de indicador: | B32: 13 | C32: función de transformación: | D32: CA=(2,3E-06*I2)-(3,05E-03*I) +1 | E32: 0<I<400
A33: Indicador: | B33: Ponderación del nivel diario de inmisión de SO2 según la superficie de zonas homogéneas | D33: CA=(1,22E-06*I2) - (3,05E-03*I) + 0,702 | E33: 400<I<600
A34: fórmula del indicador | D34: CA=0 | E34: 600<I<800
A35: unidad del indicador: | B35: mg m-3
A36: rango de valores del indicador: | B36: 0 - 800 | C36: valor del indicador | D36: 600
A37: Tipo de indicador | B37: 2 (T=0,25) | C37: calidad ambiental | D37: =IF(D36<0,"valor del indicador fuera de rango",IF(D36<=400,0.0000023*(D36^2)-(0.00305*D36)+1,IF(D36<=600,(0.00000122*(D36^2))-(0.00187*D36)+0.702, IF(D36<800, 0, "valor del indicador fuera del rango")))) -> 0.019
A38: valor del indicador | B38: calidad ambiental | C38: representación de la función de transformación
A39: 0 | B39: =((0.0000023*((A39)^2))-(0.00305*(A39))+1) -> 1.000
A40: =+A39+40 -> 40 | B40: =((0.0000023*((A40)^2))-(0.00305*(A40))+1) -> 0.882
A41: =+A40+40 -> 80 | B41: 0.771
A42: 120 | B42: 0.667
A43: 160 | B43: 0.571
A44: 200 | B44: 0.482
A45: 240 | B45: 0.400
A46: 280 | B46: 0.326
A47: 320 | B47: 0.260
A48: 360 | B48: 0.200
A49: 400 | B49: 0.148
A50: 440 | B50: =(0.00000122*(A50^2))-(0.00187*A50)+0.702 -> 0.115
A51: 480 | B51: =(0.00000122*(A51^2))-(0.00187*A51)+0.702 -> 0.085
A52: 520 | B52: =(0.00000122*(A52^2))-(0.00187*A52)+0.702 -> 0.059
A53: 560 | B53: =(0.00000122*(A53^2))-(0.00187*A53)+0.702 -> 0.037
A54: 600 | B54: =(0.00000122*(A54^2))-(0.00187*A54)+0.702 -> 0.019
A55: 640 | B55: 0.000
A56: =+A55+20 -> 660 | B56: 0.000
A57: =+A56+20 -> 680 | B57: 0.000
A58: 700 | B58: 0.000
A59: 720 | B59: 0.000
A60: 740 | B60: 0.000
A61: 760 | B61: 0.000
A62: 780 | B62: 0.000
A63: 800 | B63: 0.000
A66: nº de indicador: | B66: 14 | C66: función de transformación: | D66: CA=(-2,3E-06*I2)-(3,05E-03*I) +1 | E66: 0<I<400
A67: Indicador: | B67: Ponderación del nivel diario de inmisión de SO2 según la población afectada en cada zona | D67: CA=(1,22E-06*I2) - (1,87E-03*I) + 1,702 | E67: 400<I<600
A68: fórmula del indicador | D68: CA=0 | E68: 600<I<800
A69: unidad del indicador: | B69: mg m-3
A70: rango de valores del indicador: | B70: 0 - 800 | C70: valor del indicador | D70: 500
A71: Tipo de indicador | B71: 2 (T=0,25) | C71: calidad ambiental | D71: =IF(D70<0,"valor del indicador fuera de rango",IF(D70<=400,-0.0000023*(D70^2)-(0.00305*D70)+1,IF(D70<=600,(0.00000122*(D70^2))-(0.00187*D70)+1.702, IF(D70<800, 0, "valor del indicador fuera del rango")))) -> 1.072
A72: valor del indicador | B72: calidad ambiental | C72: representación de la función de transformación
A73: 0 | B73: =((0.0000023*((A73)^2))-(0.00305*(A73))+1) -> 1.000
A74: =+A73+40 -> 40 | B74: =((0.0000023*((A74)^2))-(0.00305*(A74))+1) -> 0.882
A75: =+A74+40 -> 80 | B75: 0.771
A76: 120 | B76: 0.667
A77: 160 | B77: 0.571
A78: 200 | B78: 0.482
A79: 240 | B79: 0.400
A80: 280 | B80: 0.326
A81: 320 | B81: 0.260
A82: 360 | B82: 0.200
A83: 400 | B83: 0.148
A84: 440 | B84: =(0.00000122*(A84^2))-(0.00187*A84)+0.702 -> 0.115
A85: 480 | B85: =(0.00000122*(A85^2))-(0.00187*A85)+0.702 -> 0.085
A86: 520 | B86: =(0.00000122*(A86^2))-(0.00187*A86)+0.702 -> 0.059
A87: 560 | B87: =(0.00000122*(A87^2))-(0.00187*A87)+0.702 -> 0.037
A88: 600 | B88: =(0.00000122*(A88^2))-(0.00187*A88)+0.702 -> 0.019
A89: 640 | B89: 0.000
A90: =+A89+20 -> 660 | B90: 0.000
A91: =+A90+20 -> 680 | B91: 0.000
A92: =+A91+20 -> 700 | B92: 0.000
A93: =+A92+20 -> 720 | B93: 0.000
A94: 740 | B94: 0.000
A95: =+A94+20 -> 760 | B95: 0.000
A96: 800 | B96: 0.000
A99: nº de indicador: | B99: 15 | C99: función de transformación: | D99: CA=(-1E-02I) + 1 | E99: 0<I<100
A100: Indicador: | B100: % porcentaje de personas aceptadas por niveles de SO2 perjudiciales.
A101: fórmula del indicador
A102: unidad del indicador: | B102: %
A103: rango de valores del indicador: | B103: 0 - 100 | C103: valor del indicador | D103: 5
A104: Tipo de indicador | B104: 2 (T=0,25) | C104: calidad ambiental | D104: =IF(D103<0,"valor del indicador fuera de rango",IF(D103<=100,-0.01*(D103)+1,"valor del indicador fuera rango")) -> 0.950
A105: valor del indicador | B105: calidad ambiental | C105: representación de la función de transformación
A106: 0 | B106: =(-0.01*A106)+1 -> 1.000
A107: 5 | B107: =(-0.01*A107)+1 -> 0.950
A108: 10 | B108: 0.900
A109: 15 | B109: 0.850
A110: 20 | B110: 0.800
A111: 25 | B111: 0.750
A112: 30 | B112: 0.700
A113: 35 | B113: 0.650
A114: 40 | B114: 0.600
A115: 45 | B115: 0.550
A116: 50 | B116: 0.500
A117: 55 | B117: 0.450
A118: 60 | B118: 0.400
A119: 70 | B119: 0.300
A120: 80 | B120: 0.200
A121: 90 | B121: 0.100
A122: 100 | B122: 0.000

Sheet 16
A1: nº de indicador: | B1: 16 | C1: función de transformación: | D1: CA=(-11*I^2) +(0,2*I) + 1 | E1: 0<I<0,2
A2: Indicador: | B2: Concentración de hidrocarburos promedio durante 3 horas | D2: CA=(27*I^2) -(18,11*I) + 3,15 | E2: 0,2<I<0,34
A3: fórmula del indicador | D3: CA=0,1 | E3: 0,34<I<0,4
A4: unidad del indicador: | B4: ppm
A5: rango de valores del indicador: | B5: 0 - 0,4 | C5: valor del indicador | D5: 0.2
A6: Tipo de indicador | B6: 2 (T=0,25) | C6: calidad ambiental | D6: =IF(D5<0,"valor del indicador fuera de rango",IF(D5<=0.2,-11*(D5^2)+(0.2*D5)+1,IF(D5<=0.34,(27*(D5^2))-(18.1*D5)+3.15,IF(D5<0.4,0.1,"valor del indicador fuera rango")))) -> 0.600
A7: valor del indicador | B7: calidad ambiental | C7: representación de la función de transformación
A8: 0.00 | B8: =(-11*A8^2)+(0.2*A8)+1 -> 1.000
A9: =+A8+0.05 -> 0.05 | B9: =(-11*A9^2)+(0.2*A9)+1 -> 0.983
A10: =+A9+0.05 -> 0.10 | B10: =(-11*A10^2)+(0.2*A10)+1 -> 0.910
A11: =+A10+0.05 -> 0.15 | B11: =(-11*A11^2)+(0.2*A11)+1 -> 0.783
A12: =+A11+0.05 -> 0.20 | B12: =(-11*A12^2)+(0.2*A12)+1 -> 0.600
A13: =+A12+0.025 -> 0.23 | B13: =(27*A13^2)-(18.1*A13)+3.15 -> 0.444
A14: =+A13+0.025 -> 0.25 | B14: =(27*A14^2)-(18.1*A14)+3.15 -> 0.313
A15: =+A14+0.025 -> 0.28 | B15: =(27*A15^2)-(18.1*A15)+3.15 -> 0.214
A16: =+A15+0.025 -> 0.30 | B16: =(27*A16^2)-(18.1*A16)+3.15 -> 0.150
A17: 0.33 | B17: =(27*A17^2)-(18.1*A17)+3.15 -> 0.117
A18: 0.34 | B18: 0.100
A19: 0.35 | B19: 0.100
A20: 0.36 | B20: 0.100
A21: 0.37 | B21: 0.100
A22: 0.38 | B22: 0.100
A23: 0.39 | B23: 0.100
A24: 0.40 | B24: 0.100

Sheet 17-23
A1: nº de indicador: | B1: 17 | C1: función de transformación: | D1: CA=1 | E1: 0<I<30
A2: Indicador: | B2: Nivel sonoro equivalente diurno en una zona hospitalaria o escolar | D2: CA=-(2,22E-03*I^2) +(1,33E-01*I) - 1 | E2: 30<I<45
A3: fórmula del indicador | D3: CA= (2,22E-03*I^2)-(2,67E-01*I)+8 | E3: 45<I<56
A4: unidad del indicador: | B4: dB
A5: rango de valores del indicador: | B5: 0 - 56 | C5: valor del indicador | D5: 52
A6: Tipo de indicador | B6: 2 (T=0,25) | C6: calidad ambiental | D6: =IF(D5<0,"valor fuera de rango",IF(D5<=30,1,IF(D5<=45,-0.00222*(D5^2)+(0.133*D5)-1, IF(D5<=56, 0.00222*(D5^2)-(0.267*D5)+8,"valor fuera de rango")))) -> 0.119
A7: valor del indicador | B7: calidad ambiental | C7: representación de la función de transformación
A8: 0 | B8: 1.000
A9: 10 | B9: 1.000
A10: 20 | B10: 1.000
A11: 30 | B11: 1.000
A12: 30 | B12: =(-0.00222*A12^2)+(0.133*A12)-1 -> 0.992
A13: 31 | B13: 0.990
A14: 33 | B14: 0.971
A15: 35 | B15: 0.936
A16: 39 | B16: 0.810
A17: 41 | B17: 0.721
A18: 43 | B18: 0.614
A19: 44 | B19: 0.554
A20: 45 | B20: 0.490
A21: 46 | B21: =(0.00222*A21^2)-(0.267*A21)+8 -> 0.416
A22: 48 | B22: 0.299
A23: 50 | B23: 0.200
A24: 52 | B24: 0.119
A25: 53 | B25: 0.085
A26: 54 | B26: 0.056
A27: 56 | B27: 0.010
A29: nº de indicador: | B29: 18 | C29: función de transformación: | D29: CA=1 | E29: 0<I<35
A30: Indicador: | B30: Nivel sonoro equivalente diurno en una zona residencial | D30: CA=-(1,63E-03*I^2) +(1,14E-01*I) - 1 | E30: 35<I<52,5
A31: fórmula del indicador | D31: CA= (1,63E-03*I^2)-(2,29E-01*I)+8 | E31: 52,5<I<65
A32: unidad del indicador: | B32: dB
A33: rango de valores del indicador: | B33: 0 - 65 | C33: valor del indicador | D33: 65
A34: Tipo de indicador | B34: 2 (T=0,25) | C34: calidad ambiental | D34: =IF(D33<0,"valor del indicador fuera de rango",IF(D33<=35,1,IF(D33<=52.5,-0.00163*(D33^2)+(0.114*D33)-1,IF(D33<=65,0.00163*(D33^2)-(0.229*D33)+8,"valor del indicador fuera rango")))) -> 0.002
A35: valor del indicador | B35: calidad ambiental | C35: representación de la función de transformación
A36: 0 | B36: 1.000
A37: 10 | B37: 1.000
A38: 20 | B38: 1.000
A39: 30 | B39: 1.000
A40: 35 | B40: 1.000
A41: 35 | B41: =(-0.00163*A41^2)+(0.114*A41)-1 -> 0.993
A42: 37 | B42: 0.987
A43: 40 | B43: 0.952
A44: 43 | B44: 0.888
A45: 45 | B45: 0.829
A46: 48 | B46: 0.716
A47: 50 | B47: 0.625
A48: 52 | B48: 0.520
A49: 53 | B49: =(0.00163*A49^2)-(0.229*A49)+8 -> 0.442
A50: 57 | B50: 0.243
A51: 59 | B51: 0.163
A52: 61 | B52: 0.096
A53: 63 | B53: 0.042
A54: 64 | B54: 0.020
A55: 65 | B55: 0.002
A58: nº de indicador: | B58: 19 | C58: función de transformación: | D58: CA=1 | E58: 0<I<30
A59: Indicador: | B59: Nivel sonoro equivalente diurno en una zona comercial | D59: CA=-(8E-04*I^2) +(4,8E-02*I) +2,8E-01 | E59: 30<I<55
A60: fórmula del indicador | D60: CA= (8E-04*I^2)-(1,28E-01*I)+ 5,12 | E60: 55<I<80
A61: unidad del indicador: | B61: dB
A62: rango de valores del indicador: | B62: 0 - 80 | C62: valor del indicador | D62: 60
A63: Tipo de indicador | B63: 2 (T=0,25) | C63: calidad ambiental | D63: =IF(D62<0,"valor del indicador fuera de rango",IF(D62<=30,1,IF(D62<=55,-0.0008*(D62^2)+(0.048*D62)+0.28,IF(D62<80, 0.0008*(D62^2)-(0.128*D62)+5.12,"valor del indicador fuera rango")))) -> 0.320
A64: valor del indicador | B64: calidad ambiental | C64: representación de la función de transformación
A65: 0 | B65: 1.000
A66: 10 | B66: 1.000
A67: 20 | B67: 1.000
A68: 30 | B68: 1.000
A69: 30 | B69: =(-0.0008*A69^2)+(0.048*A69)+0.28 -> 1.000
A70: 32 | B70: 0.997
A71: 34 | B71: 0.987
A72: 36 | B72: 0.971
A73: 38 | B73: 0.949
A74: 40 | B74: 0.920
A75: 42 | B75: 0.885
A76: 44 | B76: 0.843
A77: 46 | B77: 0.795
A78: 48 | B78: 0.741
A79: 50 | B79: 0.680
A80: 55 | B80: =(0.0008*A80^2)-(0.128*A80)+5.12 -> 0.500
A81: 60 | B81: =(0.0008*A81^2)-(0.128*A81)+5.12 -> 0.320
A82: 65 | B82: =(0.0008*A82^2)-(0.128*A82)+5.12 -> 0.180
A83: 70 | B83: =(0.0008*A83^2)-(0.128*A83)+5.12 -> 0.080
A84: 80 | B84: =(0.0008*A84^2)-(0.128*A84)+5.12 -> 0.000
A87: nº de indicador: | B87: 20 | C87: función de transformación: | D87: CA=1 | E87: 0<I<40
A88: Indicador: | B88: Nivel sonoro equivalente diurno en una zona industrial | D88: CA=-(1,25E-03*I^2) +(1E-01*I) - 1 | E88: 40<I<60
A89: fórmula del indicador | D89: CA= (1,25E-03*I^2)-(2E-01*I)+8 | E89: 60<I<80
A90: unidad del indicador: | B90: dB
A91: rango de valores del indicador: | B91: 0 - 80 | C91: valor del indicador | D91: 50
A92: Tipo de indicador | B92: 2 (T=0,25) | C92: calidad ambiental | D92: =IF(D91<0,"valor del indicador fuera de rango",IF(D91<=40,1,IF(D91<=60,-0.00125*(D91^2)+(0.1*D91)-1,IF(D91<80,0.00125*(D91^2)-(0.2*D91)+8,"valor del indicador fuera rango")))) -> 0.875
A93: valor del indicador | B93: calidad ambiental | C93: representación de la función de transformación
A94: 0 | B94: 1.000
A95: 10 | B95: 1.000
A96: 20 | B96: 1.000
A97: 30 | B97: 1.000
A98: 40 | B98: 1.000
A99: 42 | B99: =(-0.00125*A99^2)+(0.1*A99)-1 -> 0.995
A100: 45 | B100: 0.969
A101: 48 | B101: 0.920
A102: 50 | B102: 0.875
A103: 52 | B103: 0.820
A104: 55 | B104: 0.719
A105: 57 | B105: 0.639
A106: 60 | B106: =(0.00125*A106^2)-(0.2*A106)+8 -> 0.500
A107: 61 | B107: 0.451
A108: 65 | B108: 0.281
A109: 67 | B109: 0.211
A110: 70 | B110: 0.125
A111: 72 | B111: 0.080
A112: 75 | B112: 0.031
A113: 80 | B113: 0.000
A116: nº de indicador: | B116: 21 | C116: función de transformación: | D116: CA= +1 | E116: 0<I<30
A117: Indicador: | B117: Media ponderada del nivel equivalente diurno, ponderado según la superficie de zonas homogéneas | D117: CA=(-5,56E-04*I^2)+(3,33E-02*I) +5E-01 | E117: 30<I<60
A118: fórmula del indicador | D118: CA=(5,56E-04*I^2)-(1E-01*I) +4,5 | E118: 60<I<90
A119: unidad del indicador: | B119: Leq dB(A)
A120: rango de valores del indicador: | B120: 0 - 90 | C120: valor del indicador | D120: 72
A121: Tipo de indicador | B121: 2 (T=0,25) | C121: calidad ambiental | D121: =IF(D120<0,"valor del indicador fuera de rango",IF(D120<=30,1,IF(D120<=60,-0.000556*(D120^2)+(0.0333*D120)+0.5,IF(D120<=90,(0.000556*(D120^2))-(0.1*D120)+4.5,"valor del indicador fuera rango")))) -> 0.182
A122: valor del indicador | B122: calidad ambiental | C122: representación de la función de transformación
A123: 0 | B123: 1.000
A124: =+A123+4 -> 4 | B124: 1.000
A125: =+A124+4 -> 8 | B125: 1.000
A126: 12 | B126: 1.000
A127: 16 | B127: 1.000
A128: 20 | B128: 1.000
A129: 24 | B129: 1.000
A130: 28 | B130: 1.000
A131: 32 | B131: =-0.000556*(A131^2)+(0.0333*A131)+0.5 -> 0.996
A132: 36 | B132: =-0.000556*(A132^2)+(0.0333*A132)+0.5 -> 0.978
A133: 40 | B133: 0.942
A134: 44 | B134: 0.889
A135: 48 | B135: 0.817
A136: 52 | B136: 0.728
A137: 56 | B137: 0.621
A138: 60 | B138: 0.496
A139: 64 | B139: =0.000556*(A139^2)-(0.1*A139)+4.5 -> 0.377
A140: 68 | B140: 0.271
A141: 72 | B141: 0.182
A142: 76 | B142: 0.111
A143: 78 | B143: 0.083
A144: =+A142+4 -> 80 | B144: 0.058
A145: 90 | B145: 0.004
A148: nº de indicador: | B148: 22 | C148: función de transformación: | D148: CA= +1 | E148: 0<I<30
A149: Indicador: | B149: Media ponderada del nivel equivalente diurno, ponderado por el nº de personas afectadas | D149: CA=(-5,56E-04*I^2)+(3,33E-02*I) + 5E-01 | E149: 30<I<60
A150: fórmula del indicador | D150: CA=(5,56E-04*I^2)-(1E-01*I) +4,5 | E150: 60<I<90
A151: unidad del indicador: | B151: Leq dB(A)
A152: rango de valores del indicador: | B152: 0 - 90 | C152: valor del indicador | D152: 52
A153: Tipo de indicador | B153: 2 (T=0,25) | C153: calidad ambiental | D153: =IF(D152<0,"valor del indicador fuera de rango",IF(D152<=30,1,IF(D152<=60,-0.000556*(D152^2)+(0.0333*D152)+0.5,IF(D152<=90,(0.000556*(D152^2))-(0.1*D152)+4.5,"valor del indicador fuera rango")))) -> 0.728
A154: valor del indicador | B154: calidad ambiental | C154: representación de la función de transformación
A155: 0 | B155: 1.000
A156: =+A155+4 -> 4 | B156: 1.000
A157: =+A156+4 -> 8 | B157: 1.000
A158: 12 | B158: 1.000
A159: 16 | B159: 1.000
A160: 20 | B160: 1.000
A161: 24 | B161: 1.000
A162: 28 | B162: 1.000
A163: 32 | B163: =-0.000556*(A163^2)+(0.0333*A163)+0.5 -> 0.996
A164: 36 | B164: =-0.000556*(A164^2)+(0.0333*A164)+0.5 -> 0.978
A165: 40 | B165: 0.942
A166: 44 | B166: 0.889
A167: 48 | B167: 0.817
A168: 52 | B168: 0.728
A169: 60 | B169: 0.496
A170: 64 | B170: =0.000556*(A170^2)-(0.1*A170)+4.5 -> 0.377
A171: 68 | B171: =0.000556*(A171^2)-(0.1*A171)+4.5 -> 0.271
A172: 76 | B172: =0.000556*(A172^2)-(0.1*A172)+4.5 -> 0.111
A173: 80 | B173: =0.000556*(A173^2)-(0.1*A173)+4.5 -> 0.058
A174: 90 | B174: =0.000556*(A174^2)-(0.1*A174)+4.5 -> 0.004
A177: nº de indicador: | B177: 23 | C177: función de transformación: | D177: CA= (-1E-02*I)+1 | E177: 0<I<100
A178: Indicador: | B178: % de personas afectadas por niveles sonoros diurnos perjudiciales
A179: fórmula del indicador
A180: unidad del indicador: | B180: %
A181: rango de valores del indicador: | B181: 0 - 100 | C181: valor del indicador | D181: 40
A182: Tipo de indicador | B182: 2 (T=0,25) | C182: calidad ambiental | D182: =IF(D181<0,"valor del indicador fuera de rango",IF(D181<=100,-0.01*(D181)+1,"valor del indicador fuera rango")) -> 0.600
A183: valor del indicador | B183: calidad ambiental | C183: representación de la función de transformación
A184: 0 | B184: =(-0.01*A184)+1 -> 1.000
A185: =+A184+5 -> 5 | B185: =(-0.01*A185)+1 -> 0.950
A186: =+A185+5 -> 10 | B186: 0.900
A187: 15 | B187: 0.850
A188: 20 | B188: 0.800
A189: 25 | B189: 0.750
A190: 30 | B190: 0.700
A191: 35 | B191: 0.650
A192: 40 | B192: 0.600
A193: 45 | B193: 0.550
A194: 50 | B194: 0.500
A195: 55 | B195: 0.450
A196: 60 | B196: 0.400
A197: 65 | B197: 0.350
A198: 70 | B198: 0.300
A199: 75 | B199: 0.250
A200: 80 | B200: 0.200
A201: 90 | B201: 0.100
A202: 100 | B202: 0.000

Sheet 24-30
A1: nº de indicador: | B1: 24 | C1: función de transformación: | D1: CA=+1 | E1: 0<I<25
A2: Indicador: | B2: Nivel sonoro equivalente nocturno en una zona hospitalaria o escolar | D2: CA=(-3,2E-03*I^2)+(1,6E-01*I) -1 | E2: 25<I<37,5
A3: fórmula del indicador | D3: CA=(3,2E-0*I^2)-(3,2E-01*I) +8 | E3: 37,5<I<50
A4: unidad del indicador: | B4: Leq dB(A)
A5: rango de valores del indicador: | B5: 0 - 50 | C5: valor del indicador | D5: 40
A6: Tipo de indicador | B6: 2 (T=0,25) | C6: calidad ambiental | D6: =IF(D5<0,"valor del indicador fuera de rango",IF(D5<=25,1,IF(D5<=37.5,-0.0032*(D5^2)+(0.16*D5)-1,IF(D5<=50,(0.0032*(D5^2))-(0.32*D5)+8,"valor del indicador fuera rango")))) -> 0.320
A7: valor del indicador | B7: calidad ambiental | C7: representación de la función de transformación
A8: 0.0 | B8: 1.000
A9: 2.5 | B9: 1.000
A10: 5.0 | B10: 1.000
A11: 7.5 | B11: 1.000
A12: 10.0 | B12: 1.000
A13: 12.5 | B13: 1.000
A14: 15.0 | B14: 1.000
A15: 20.0 | B15: 1.000
A16: 22.5 | B16: 1.000
A17: 25.0 | B17: 1.000
A18: 27.5 | B18: =-0.0032*(A18^2)+(0.16*A18)-1 -> 0.980
A19: 30.0 | B19: =-0.0032*(A19^2)+(0.16*A19)-1 -> 0.920
A20: 32.5 | B20: =-0.0032*(A20^2)+(0.16*A20)-1 -> 0.820
A21: 35.0 | B21: =-0.0032*(A21^2)+(0.16*A21)-1 -> 0.680
A22: 37.5 | B22: =-0.0032*(A22^2)+(0.16*A22)-1 -> 0.500
A23: 40.0 | B23: =0.0032*(A23^2)-(0.32*A23)+8 -> 0.320
A24: 42.5 | B24: =0.0032*(A24^2)-(0.32*A24)+8 -> 0.180
A25: 45.0 | B25: =0.0032*(A25^2)-(0.32*A25)+8 -> 0.080
A26: 47.5 | B26: =0.0032*(A26^2)-(0.32*A26)+8 -> 0.020
A27: 50.0 | B27: =0.0032*(A27^2)-(0.32*A27)+8 -> 0.000
A30: nº de indicador: | B30: 25 | C30: función de transformación: | D30: CA=+1 | E30: 0<I<30
A31: Indicador: | B31: Nivel sonoro equivalente nocturno en una zona residencial | D31: CA=(-2,22E-0,3*I^2) +(1,33E-01*I) -1 | E31: 30<I<45
A32: fórmula del indicador | D32: CA=(2,22E-0,3*I^2) -(2,67E-01*I) +8 | E32: 45<I<56
A33: unidad del indicador: | B33: Leq dB(A)
A34: rango de valores del indicador: | B34: 0 - 56 | C34: valor del indicador | D34: 50
A35: Tipo de indicador | B35: 2 (T=0,25) | C35: calidad ambiental | D35: =IF(D34<0,"valor del indicador fuera de rango",IF(D34<=30,1,IF(D34<=45,-0.00222*(D34^2)+(0.133*D34)-1,IF(D34<=56,0.00222*(D34^2)-(0.267*D34)+8,"valor del indicador fuera rango")))) -> 0.200
A36: valor del indicador | B36: calidad ambiental | C36: representación de la función de transformación
A37: 0 | B37: 1.000
A38: 5 | B38: 1.000
A39: 10 | B39: 1.000
A40: 15 | B40: 1.000
A41: 20 | B41: 1.000
A42: 25 | B42: 1.000
A43: 30 | B43: 1.000
A44: 32 | B44: =-0.00222*(A44^2)+(0.133*A44)-1 -> 0.983
A45: 34 | B45: =-0.00222*(A45^2)+(0.133*A45)-1 -> 0.956
A46: 36 | B46: 0.911
A47: 38 | B47: 0.848
A48: 40 | B48: 0.768
A49: 42 | B49: 0.670
A50: 44 | B50: 0.554
A51: 46 | B51: =0.00222*(A51^2)-(0.267*A51)+8 -> 0.416
A52: 48 | B52: 0.299
A53: 50 | B53: 0.200
A54: 52 | B54: 0.119
A55: 54 | B55: 0.056
A56: 56 | B56: 0.010
A59: nº de indicador: | B59: 26 | C59: función de transformación: | D59: CA=+1 | E59: 0<I<35
A60: Indicador: | B60: Nivel sonoro equivalente nocturno en una zona comercial | D60: CA=(-2,22E-0,3*I^2) +(1,56E-01*I) -1,72 | E60: 35<I<50
A61: fórmula del indicador | D61: CA=(2,22E-0,3*I^2) -(2,89E-01*I) +3,39 | E61: 50<I<62
A62: unidad del indicador: | B62: Leq dB(A)
A63: rango de valores del indicador: | B63: 0 - 62 | C63: valor del indicador | D63: 60
A64: Tipo de indicador | B64: 2 (T=0,25) | C64: calidad ambiental | D64: =IF(D63<0,"valor del indicador fuera de rango",IF(D63<=35,1,IF(D63<=50,-0.00222*(D63^2)+(0.156*D63)-1.72,IF(D63<=62,0.00222*(D63^2)-(0.289*D63)+9.39,"valor del indicador fuera rango")))) -> 0.042
A65: valor del indicador | B65: calidad ambiental | C65: representación de la función de transformación
A66: 0 | B66: 1.000
A67: 5 | B67: 1.000
A68: 10 | B68: 1.000
A69: 15 | B69: 1.000
A70: 20 | B70: 1.000
A71: 25 | B71: 1.000
A72: 30 | B72: 1.000
A73: 36 | B73: =-0.00222*(A73^2)+(0.156*A73)-1.72 -> 1.019
A74: 38 | B74: 1.002
A75: 40 | B75: 0.968
A76: 42 | B76: 0.916
A77: 44 | B77: 0.846
A78: 46 | B78: 0.758
A79: 48 | B79: 0.653
A80: 50 | B80: =-0.00222*(A80^2)+(0.156*A80)-1.72 -> 0.530
A81: 52 | B81: =0.00222*(A81^2)-(0.289*A81)+9.39 -> 0.365
A82: 56 | B82: =0.00222*(A82^2)-(0.289*A82)+9.39 -> 0.168
A83: =+A82+2 -> 58 | B83: =0.00222*(A83^2)-(0.289*A83)+9.39 -> 0.096
A84: =+A83+2 -> 60 | B84: =0.00222*(A84^2)-(0.289*A84)+9.39 -> 0.042
A85: =+A84+2 -> 62 | B85: =0.00222*(A85^2)-(0.289*A85)+9.39 -> 0.006
A88: nº de indicador: | B88: 27 | C88: función de transformación: | D88: CA=+1 | E88: 0<I<35
A89: Indicador: | B89: Nivel sonoro equivalente nocturno en una zona industrial | D89: CA=(-1,63E-0,3*I^2) +(1,14E-01*I) -1 | E89: 35<I<52,5
A90: fórmula del indicador | D90: CA=(1,63E-0,3*I^2) -(2,29E-01*I) +8 | E90: 52,5<I<65
A91: unidad del indicador: | B91: Leq dB(A)
A92: rango de valores del indicador: | B92: 0 - 65 | C92: valor del indicador | D92: 58
A93: Tipo de indicador | B93: 2 (T=0,25) | C93: calidad ambiental | D93: =IF(D92<0,"valor del indicador fuera de rango",IF(D92<=35,1,IF(D92<=52.5,-0.00163*(D92^2)+(0.114*D92)-1,IF(D92<=65,0.00163*(D92^2)-(0.229*D92)+8,"valor del indicador fuera rango")))) -> 0.201
A94: valor del indicador | B94: calidad ambiental | C94: representación de la función de transformación
A95: 0 | B95: 1.000
A96: 5 | B96: 1.000
A97: 10 | B97: 1.000
A98: 15 | B98: 1.000
A99: 20 | B99: 1.000
A100: 25 | B100: 1.000
A101: 30 | B101: 1.000
A102: 36 | B102: =-0.00163*(A102^2)+(0.114*A102)-1 -> 0.992
A103: 38 | B103: =-0.00163*(A103^2)+(0.114*A103)-1 -> 0.978
A104: 40 | B104: 0.952
A105: 42 | B105: 0.913
A106: 44 | B106: 0.860
A107: 46 | B107: 0.795
A108: 48 | B108: 0.716
A109: 50 | B109: 0.625
A110: 52 | B110: =0.00163*(A110^2)-(0.229*A110)+8 -> 0.500
A111: 56 | B111: =0.00163*(A111^2)-(0.229*A111)+8 -> 0.288
A112: =+A111+2 -> 58 | B112: =0.00163*(A112^2)-(0.229*A112)+8 -> 0.201
A113: =+A112+2 -> 60 | B113: =0.00163*(A113^2)-(0.229*A113)+8 -> 0.128
A114: 65 | B114: =0.00163*(A114^2)-(0.229*A114)+8 -> 0.002
A117: nº de indicador: | B117: 28 | C117: función de transformación: | D117: CA=+1 | E117: 0<I<30
A118: Indicador: | B118: Media ponderada del nivel equivalente nocturno, ponderado por la superficie de zonas homogéneas | D118: CA=(-1,63E-0,3*I^2) +(1,14E-01*I) -1 | E118: 30<I<57,5
A119: fórmula del indicador | D119: CA=(1,63E-0,3*I^2) -(2,29E-01*I) +8 | E119: 57,5<I<85
A120: unidad del indicador: | B120: Leq dB(A)
A121: rango de valores del indicador: | B121: 0 - 85 | C121: valor del indicador | D121: 58
A122: Tipo de indicador | B122: 2 (T=0,25) | C122: calidad ambiental | D122: =IF(D121<0,"valor del indicador fuera de rango",IF(D121<=30,1,IF(D121<=57.5,-0.000661*(D121^2)+(0.0397*D121)+0.405,IF(D121<=85,0.000661*(D121^2)-(0.112*D121)+4.78,"valor del indicador fuera rango")))) -> 0.508
A123: valor del indicador | B123: calidad ambiental | C123: representación de la función de transformación
A124: 0 | B124: 1.000
A125: 10 | B125: 1.000
A126: 20 | B126: 1.000
A127: 30 | B127: 1.000
A128: 35 | B128: =-0.000661*(A128^2)+(0.0397*A128)+0.405 -> 0.985
A129: 37 | B129: =-0.000661*(A129^2)+(0.0397*A129)+0.405 -> 0.969
A130: 40 | B130: 0.935
A131: 42 | B131: 0.906
A132: 45 | B132: 0.853
A133: 47 | B133: 0.811
A134: 50 | B134: 0.738
A135: 52 | B135: 0.682
A136: 55 | B136: 0.589
A137: 57 | B137: 0.520
A138: 60 | B138: =0.000661*(A138^2)-(0.112*A138)+4.78 -> 0.440
A139: 62 | B139: 0.377
A140: 65 | B140: 0.293
A141: 67 | B141: 0.243
A142: 70 | B142: 0.179
A143: 72 | B143: 0.143
A144: 75 | B144: 0.098
A145: 80 | B145: 0.050
A146: 85 | B146: 0.036
A149: nº de indicador: | B149: 29 | C149: función de transformación: | D149: CA=+1 | E149: 0<I<30
A150: Indicador: | B150: Media ponderada del nivel equivalente nocturno, ponderado según el nº de personas afectadas | D150: CA=(-6,61E-04*I^2) +(3,97E-02*I) +4,05E-01 | E150: 30<I<57,5
A151: fórmula del indicador | D151: CA=(6,61E-04*I^2) -(1,12E-01*I) +4,78 | E151: 57,5<I<85
A152: unidad del indicador: | B152: Leq dB(A)
A153: rango de valores del indicador: | B153: 0 - 85 | C153: valor del indicador | D153: 35
A154: Tipo de indicador | B154: 2 (T=0,25) | C154: calidad ambiental | D154: =IF(D153<0,"valor del indicador fuera de rango",IF(D153<=30,1,IF(D153<=57.5,-0.000661*(D153^2)+(0.0397*D153)+0.405,IF(D153<=85,0.000661*(D153^2)-(0.112*D153)+4.78,"valor del indicador fuera rango")))) -> 0.985
A155: valor del indicador | B155: calidad ambiental | C155: representación de la función de transformación
A156: 0 | B156: 1.000
A157: 10 | B157: 1.000
A158: 20 | B158: 1.000
A159: 30 | B159: 1.000
A160: 35 | B160: =-0.000661*(A160^2)+(0.0397*A160)+0.405 -> 0.985
A161: 37 | B161: =-0.000661*(A161^2)+(0.0397*A161)+0.405 -> 0.969
A162: 40 | B162: 0.935
A163: 42 | B163: 0.906
A164: 45 | B164: 0.853
A165: 47 | B165: 0.811
A166: 50 | B166: 0.738
A167: 52 | B167: 0.682
A168: 55 | B168: 0.589
A169: 60 | B169: =0.000661*(A169^2)-(0.112*A169)+4.78 -> 0.440
A170: 65 | B170: 0.293
A171: 67 | B171: 0.243
A172: 70 | B172: 0.179
A173: 72 | B173: 0.143
A174: 75 | B174: 0.098
A175: 80 | B175: 0.050
A176: 85 | B176: 0.036
A179: nº de indicador: | B179: 30 | C179: función de transformación: | D179: CA= (-1E-02*i)+1 | E179: 0<I<100
A180: Indicador: | B180: % de personas afectadas por niveles sonoros nocturno perjudiciales.
A181: fórmula del indicador
A182: unidad del indicador: | B182: %
A183: rango de valores del indicador: | B183: 0 - 100 | C183: valor del indicador | D183: 40
A184: Tipo de indicador | B184: 2 (T=0,25) | C184: calidad ambiental | D184: =IF(D183<0,"valor del indicador fuera de rango",IF(D183<=100,(-0.01*D183)+1,"valor del indicador fuera rango")) -> 0.600
A185: valor del indicador | B185: calidad ambiental | C185: representación de la función de transformación
A186: 0 | B186: =(-0.01*A186)+1 -> 1.000
A187: 5 | B187: =(-0.01*A187)+1 -> 0.950
A188: 10 | B188: 0.900
A189: 15 | B189: 0.850
A190: 20 | B190: 0.800
A191: 25 | B191: 0.750
A192: 30 | B192: 0.700
A193: 35 | B193: 0.650
A194: 40 | B194: 0.600
A195: 45 | B195: 0.550
A196: 50 | B196: 0.500
A197: 55 | B197: 0.450
A198: 60 | B198: 0.400
A199: 65 | B199: 0.350
A200: 70 | B200: 0.300
A201: 75 | B201: 0.250
A202: 80 | B202: 0.200
A203: 90 | B203: 0.100
A204: 100 | B204: 0.000

Sheet 31
A1: nº de indicador: | B1: 31 | C1: función de transformación: | D1: CA= 1,8E-02*I+1,8 | E1: − 100 < I < −50
A2: Indicador: | B2: % de vegetación afectada negativamente por lavariación del spray marino | D2: CA= 2E-0,3*I+1 | E2: − 50 < I < 0
A3: fórmula del indicador | D3: CA= -1E-02*I+1 | E3: 0<I<100
A4: unidad del indicador:
A5: rango de valores del indicador: | B5: -100 - 100 | C5: valor del indicador | D5: 60
A6: Tipo de indicador | B6: 2 (T=0,25) | C6: calidad ambiental | D6: =IF(D5<-100,"valor del indicador fuera de rango",IF(D5<=-50,0.018*(D5)+(1.8),IF(D5<=0,(0.002*(D5))+1,IF(D5<=100,(-0.01*(D5))+1,"valor del indicador fuera rango")))) -> 0.400
A7: valor del indicador | B7: calidad ambiental | C7: representación de la función de transformación
A8: -100 | B8: =0.018*A8+1.8 -> 0.000
A9: -90 | B9: 0.180
A10: -80 | B10: 0.360
A11: -70 | B11: 0.540
A12: -60 | B12: 0.720
A13: -50 | B13: 0.900
A14: -40 | B14: =0.002*A14+1 -> 0.920
A15: -30 | B15: =0.002*A15+1 -> 0.940
A16: -20 | B16: =0.002*A16+1 -> 0.960
A17: -10 | B17: =0.002*A17+1 -> 0.980
A18: 0 | B18: =0.002*A18+1 -> 1.000
A19: 10 | B19: =-0.01*A19+1 -> 0.900
A20: 20 | B20: =-0.01*A20+1 -> 0.800
A21: 30 | B21: 0.700
A22: 40 | B22: 0.600
A23: 50 | B23: 0.500
A24: 60 | B24: 0.400
A25: 80 | B25: 0.200
A26: 100 | B26: 0.000

Sheet 32-34
A1: nº de indicador: | B1: 32 | C1: función de transformación: | D1: CA=-4E-01*(I^2)+1,4*I | E1: 0<I<1
A2: Indicador: | B2: Calidad perceptible del aire según su olor y visibilidad (olor agradable)
A3: fórmula del indicador
A4: unidad del indicador:
A5: rango de valores del indicador: | B5: 0 - 1 | C5: valor del indicador | D5: 0.5
A6: Tipo de indicador | B6: 3 (T=0,50) | C6: calidad ambiental | D6: =IF(D5<0,"valor del indicador fuera de rango",IF(D5<=1,((-0.4*D5^2)+(1.4*D5)),"valor del indicador fuera rango")) -> 0.600
A7: valor del indicador | B7: calidad ambiental | C7: representación de la función de transformación
A8: 0.00 | B8: =-0.4*A8^2+1.4*A8 -> 0.000
A9: =A8+0.05 -> 0.05 | B9: =-0.4*A9^2+1.4*A9 -> 0.069
A10: =A9+0.05 -> 0.10 | B10: 0.136
A11: 0.15 | B11: 0.201
A12: 0.20 | B12: 0.264
A13: 0.25 | B13: 0.325
A14: 0.30 | B14: 0.384
A15: 0.35 | B15: 0.441
A16: 0.40 | B16: 0.496
A17: 0.45 | B17: 0.549
A18: 0.50 | B18: 0.600
A19: 0.55 | B19: 0.649
A20: 0.60 | B20: 0.696
A21: 0.70 | B21: 0.784
A22: 0.80 | B22: 0.864
A23: 0.85 | B23: 0.901
A24: 0.90 | B24: 0.936
A25: 1.00 | B25: 1.000
A28: nº de indicador: | B28: 33 | C28: función de transformación: | D28: CA=-2,89E-01*(I^2)+1,19*I | E28: 0<I<1
A29: Indicador: | B29: Calidad perceptible del aire según su olor y visibilidad (sin olor)
A30: fórmula del indicador
A31: unidad del indicador:
A32: rango de valores del indicador: | B32: 0 - 1 | C32: valor del indicador | D32: 0.5
A33: Tipo de indicador | B33: 3 (T=0,50) | C33: calidad ambiental | D33: =IF(D32<0,"valor del indicador fuera de rango",IF(D32<=1,((-0.289*D32^2)+(1.19*D32)),"valor del indicador fuera rango")) -> 0.523
A34: valor del indicador | B34: calidad ambiental | C34: representación de la función de transformación
A35: 0.00 | B35: =-0.289*A35^2+1.19*A35 -> 0.000
A36: =A35+0.05 -> 0.05 | B36: =-0.289*A36^2+1.19*A36 -> 0.059
A37: =A36+0.05 -> 0.10 | B37: 0.116
A38: 0.15 | B38: 0.172
A39: 0.20 | B39: 0.226
A40: 0.25 | B40: 0.279
A41: 0.30 | B41: 0.331
A42: 0.35 | B42: 0.381
A43: 0.40 | B43: 0.430
A44: 0.45 | B44: 0.477
A45: 0.50 | B45: 0.523
A46: 0.55 | B46: 0.567
A47: 0.60 | B47: 0.610
A48: 0.70 | B48: 0.691
A49: 0.80 | B49: 0.767
A50: 0.85 | B50: 0.803
A51: 0.90 | B51: 0.837
A52: 1.00 | B52: 0.901
A55: nº de indicador: | B55: 34 | C55: función de transformación: | D55: CA=-2E-01*(I^2)+4E-01*I | E55: 0<I<1
A56: Indicador: | B56: Calidad perceptible del aire según su olor y visibilidad (olor desagradable)
A57: fórmula del indicador
A58: unidad del indicador:
A59: rango de valores del indicador: | B59: 0 - 1 | C59: valor del indicador | D59: 0.5
A60: Tipo de indicador | B60: 3 (T=0,50) | C60: calidad ambiental | D60: =IF(D59<0,"valor del indicador fuera de rango",IF(D59<=1,((-0.2*D59^2)+(0.4*D59)),"valor del indicador fuera rango")) -> 0.150
A61: valor del indicador | B61: calidad ambiental | C61: representación de la función de transformación
A62: 0.00 | B62: =-0.2*A62^2+0.4*A62 -> 0.000
A63: =A62+0.05 -> 0.05 | B63: =-0.2*A63^2+0.4*A63 -> 0.020
A64: =A63+0.05 -> 0.10 | B64: =-0.2*A64^2+0.4*A64 -> 0.038
A65: 0.15 | B65: 0.056
A66: 0.20 | B66: 0.072
A67: 0.25 | B67: 0.088
A68: 0.30 | B68: 0.102
A69: 0.35 | B69: 0.116
A70: 0.40 | B70: 0.128
A71: 0.45 | B71: 0.140
A72: 0.50 | B72: 0.150
A73: 0.55 | B73: 0.160
A74: 0.60 | B74: 0.168
A75: 0.65 | B75: 0.176
A76: 0.70 | B76: 0.182
A77: 0.80 | B77: 0.192
A78: 0.90 | B78: 0.198
A79: 1.00 | B79: 0.200

Sheet 35-39
A1: nº de indicador: | B1: 35 | C1: función de transformación: | D1: CA= 6,94E-5*(I^2)-1,25E-02*I+1 | E1: 0 < I < 60
A2: Indicador: | B2: Promedio diario de la concentración de polvo y partículas en suspensión | D2: CA= 1,54E-06*(I^2)-1,94E-03*I+6,1E-01 | E2: 60 < I < 600
A3: fórmula del indicador
A4: unidad del indicador: | B4: mg m-3
A5: rango de valores del indicador: | B5: 0 - 600 | C5: valor del indicador | D5: 120
A6: Tipo de indicador | B6: 2 (T=0,25) | C6: calidad ambiental | D6: =IF(D5<0,"valor del indicador fuera de rango",IF(D5<=60,(0.0000694*(D5^2)-(0.0125*D5)+1),IF(D5<=600,((0.00000154*D5^2)-(0.00194*D5)+0.61),"valor del indicador fuera rango"))) -> 0.399
A7: valor del indicador | B7: calidad ambiental | C7: representación de la función de transformación
A8: 0 | B8: =0.0000694*A8^2-0.0125*A8+1 -> 1.000
A9: 10 | B9: 0.882
A10: 20 | B10: 0.778
A11: 30 | B11: 0.687
A12: 40 | B12: 0.611
A13: 50 | B13: 0.549
A14: 60 | B14: 0.500
A15: 90 | B15: =0.00000154*A15^2-0.00194*A15+0.61 -> 0.448
A16: 120 | B16: =0.00000154*A16^2-0.00194*A16+0.61 -> 0.399
A17: 150 | B17: 0.354
A18: 180 | B18: 0.311
A19: 210 | B19: 0.271
A20: 240 | B20: 0.233
A21: 270 | B21: 0.198
A22: 300 | B22: 0.167
A23: 330 | B23: 0.138
A24: 360 | B24: 0.111
A25: 450 | B25: 0.049
A26: 480 | B26: 0.034
A27: 510 | B27: 0.021
A28: 540 | B28: 0.011
A29: 570 | B29: 0.005
A30: 600 | B30: 0.000
A33: nº de indicador: | B33: 36 | C33: función de transformación: | D33: CA= 6,94E-5*(I^2)-1,25E-02*I+1 | E33: 0 < I < 60
A34: Indicador: | B34: Ponderación del nivel diario de la concentración de polvo y partículas en suspensión según superficie de zonas homogeneas | D34: CA= 1,54E-06*(I^2)-1,94E-03*I+6,1E-01 | E34: 60 < I < 600
A35: fórmula del indicador
A36: unidad del indicador: | B36: mg m-3
A37: rango de valores del indicador: | B37: 0 - 600 | C37: valor del indicador | D37: 120
A38: Tipo de indicador | B38: 2 (T=0,25) | C38: calidad ambiental | D38: =IF(D37<0,"valor del indicador fuera de rango",IF(D37<=60,(0.0000694*(D37^2)-(0.0125*D37)+1),IF(D37<=600,((0.00000154*D37^2)-(0.00194*D37)+0.61),"valor del indicador fuera rango"))) -> 0.399
A39: valor del indicador | B39: calidad ambiental | C39: representación de la función de transformación
A40: 0 | B40: =0.0000694*A40^2-0.0125*A40+1 -> 1.000
A41: 10 | B41: =0.0000694*A41^2-0.0125*A41+1 -> 0.882
A42: 20 | B42: =0.0000694*A42^2-0.0125*A42+1 -> 0.778
A43: 30 | B43: =0.0000694*A43^2-0.0125*A43+1 -> 0.687
A44: 40 | B44: 0.611
A45: 45 | B45: 0.578
A46: 50 | B46: 0.549
A47: 55 | B47: 0.522
A48: 60 | B48: 0.500
A49: 90 | B49: =0.00000154*A49^2-0.00194*A49+0.61 -> 0.448
A50: 120 | B50: =0.00000154*A50^2-0.00194*A50+0.61 -> 0.399
A51: 150 | B51: 0.354
A52: 180 | B52: 0.311
A53: 210 | B53: 0.271
A54: 240 | B54: 0.233
A55: 270 | B55: 0.198
A56: 300 | B56: 0.167
A57: 330 | B57: 0.138
A58: 360 | B58: 0.111
A59: 450 | B59: 0.049
A60: 480 | B60: 0.034
A61: 510 | B61: 0.021
A62: 540 | B62: 0.011
A63: 570 | B63: 0.005
A64: 600 | B64: 0.000
A67: nº de indicador: | B67: 37 | C67: función de transformación: | D67: CA= 6,94E-5*(I^2)-1,25E-02*I+1 | E67: 0 < I < 60
A68: Indicador: | B68: Ponderación del nivel diario de la concentración de polvo y partículas en suspensión según población afectada de la zona | D68: CA= 1,54E-06*(I^2)-1,94E-03*I+6,1E-01 | E68: 60 < I < 600
A69: fórmula del indicador
A70: unidad del indicador: | B70: mg m-3
A71: rango de valores del indicador: | B71: 0 - 600 | C71: valor del indicador | D71: 210
A72: Tipo de indicador | B72: 2 (T=0,25) | C72: calidad ambiental | D72: =IF(D71<0,"valor del indicador fuera de rango",IF(D71<=60,(0.0000694*(D71^2)-(0.0125*D71)+1),IF(D71<=600,((0.00000154*D71^2)-(0.00194*D71)+0.61),"valor del indicador fuera rango"))) -> 0.271
A73: valor del indicador | B73: calidad ambiental | C73: representación de la función de transformación
A74: 0 | B74: =0.0000694*A74^2-0.0125*A74+1 -> 1.000
A75: 10 | B75: =0.0000694*A75^2-0.0125*A75+1 -> 0.882
A76: 20 | B76: =0.0000694*A76^2-0.0125*A76+1 -> 0.778
A77: 30 | B77: =0.0000694*A77^2-0.0125*A77+1 -> 0.687
A78: 40 | B78: 0.611
A79: 45 | B79: 0.578
A80: 50 | B80: 0.549
A81: 55 | B81: 0.522
A82: 60 | B82: 0.500
A83: 90 | B83: =0.00000154*A83^2-0.00194*A83+0.61 -> 0.448
A84: 120 | B84: =0.00000154*A84^2-0.00194*A84+0.61 -> 0.399
A85: 150 | B85: 0.354
A86: 180 | B86: 0.311
A87: 210 | B87: 0.271
A88: 240 | B88: 0.233
A89: 270 | B89: 0.198
A90: 300 | B90: 0.167
A91: 330 | B91: 0.138
A92: 360 | B92: 0.111
A93: 450 | B93: 0.049
A94: 480 | B94: 0.034
A95: 510 | B95: 0.021
A96: 540 | B96: 0.011
A97: 570 | B97: 0.005
A98: 600 | B98: 0.000
A101: nº de indicador: | B101: 38 | C101: función de transformación: | D101: CA=-1E-02*I+1 | E101: 0<I<100
A102: Indicador: | B102: % de personas afectadas por concentraciones perjudiciales de polvo y partículas en suspensión.
A103: fórmula del indicador
A104: unidad del indicador: | B104: %
A105: rango de valores del indicador: | B105: 0 - 100 | C105: valor del indicador | D105: 40
A106: Tipo de indicador | B106: 2 (T=0,25) | C106: calidad ambiental | D106: =IF(D105<0,"valor del indicador fuera de rango",IF(D105<=100,((-0.01*D105)+(1)),"valor del indicador fuera rango")) -> 0.600
A107: valor del indicador | B107: calidad ambiental | C107: representación de la función de transformación
A108: 0 | B108: =-0.01*A108+1 -> 1.000
A109: =A108+5 -> 5 | B109: =-0.01*A109+1 -> 0.950
A110: =A109+5 -> 10 | B110: 0.900
A111: 15 | B111: 0.850
A112: 20 | B112: 0.800
A113: 25 | B113: 0.750
A114: 30 | B114: 0.700
A115: 35 | B115: 0.650
A116: 40 | B116: 0.600
A117: 45 | B117: 0.550
A118: 50 | B118: 0.500
A119: 55 | B119: 0.450
A120: 60 | B120: 0.400
A121: 70 | B121: 0.300
A122: 80 | B122: 0.200
A123: 90 | B123: 0.100
A124: 100 | B124: 0.000
A127: nº de indicador: | B127: 39 | C127: función de transformación: | D127: CA=+1 | E127: 0<I<2,5
A128: Indicador: | B128: Deposición de polvo por unidad de superficie. | D128: CA=-1,18E-0,2*(I^2)+5,92E-02*I+9,2E-01 | E128: 2,5<I<9
A129: fórmula del indicador | D129: CA=-5,56E-0,2*(I^2)+5,56E-01*I | E129: 9<I<10
A130: unidad del indicador: | B130: g m-2 día-1
A131: rango de valores del indicador: | B131: 0 - 10 | C131: valor del indicador | D131: 9.5
A132: Tipo de indicador | B132: 2 (T=0,25) | C132: calidad ambiental | D132: =IF(D131<0,"valor del indicador fuera de rango",IF(D131<=2.5,1,IF(D131<=9,-0.0118*(D131^2)+(0.0592*D131)+0.926,IF(D131<=10,-0.0556*(D131^2)+(0.556*D131),"valor del indicador fuera rango")))) -> 0.264
A133: valor del indicador | B133: calidad ambiental | C133: representación de la función de transformación
A134: 0.0 | B134: =1 -> 1.000
A135: 0.5 | B135: =1 -> 1.000
A136: 1.0 | B136: =1 -> 1.000
A137: 1.5 | B137: =1 -> 1.000
A138: 2.0 | B138: =1 -> 1.000
A139: 2.5 | B139: =1 -> 1.000
A140: 3.0 | B140: =-0.0118*A140^2+0.0592*A140+0.926 -> 0.997
A141: 3.5 | B141: =-0.0118*A141^2+0.0592*A141+0.926 -> 0.989
A142: 4.0 | B142: 0.974
A143: 4.5 | B143: 0.953
A144: 5.0 | B144: 0.927
A145: 5.5 | B145: 0.895
A146: 6.0 | B146: 0.856
A147: 6.5 | B147: 0.812
A148: 7.0 | B148: 0.762
A149: 8.0 | B149: 0.644
A150: 8.5 | B150: 0.577
A151: 9.0 | B151: 0.503
A152: 9.5 | B152: =-0.0556*(A152^2)+0.556*(A152) -> 0.264
A153: 10.0 | B153: =-0.0556*(A153^2)+0.556*(A153) -> 0.000

Sheet 40
A1: nº de indicador: | B1: 40 | C1: función de transformación: | D1: CA=+1 | E1: 0<I<2
A2: Indicador: | B2: Indicador semicualitativo del olor del aire. | D2: CA=-0,375E-0,1*I+1,75 | E2: 2<I<4
A3: fórmula del indicador | D3: CA=-0,125E-0,1*I+0,75 | E3: 4<I<6
A4: unidad del indicador:
A5: rango de valores del indicador: | B5: 0 - 6 | C5: valor del indicador | D5: 5
A6: Tipo de indicador | B6: 3 (T=0,50) | C6: calidad ambiental | D6: =IF(D5<0,"valor del indicador fuera de rango",IF(D5<=2,1,IF(D5<=4,-0.375*(D5)+1.75,IF(D5<=6,-0.125*(D5)+0.75,"valor del indicador fuera rango")))) -> 0.125
A7: valor del indicador | B7: calidad ambiental | C7: representación de la función de transformación
A8: 0.0 | B8: =1 -> 1.000
A9: 0.1 | B9: =1 -> 1.000
A10: =+A9+0.3 -> 0.4 | B10: =1 -> 1.000
A11: 0.7 | B11: =1 -> 1.000
A12: 1.0 | B12: =1 -> 1.000
A13: 1.3 | B13: =1 -> 1.000
A14: 1.6 | B14: =1 -> 1.000
A15: 1.9 | B15: =1 -> 1.000
A16: 2.2 | B16: =-0.375*A16+1.75 -> 0.925
A17: 2.5 | B17: 0.813
A18: 2.8 | B18: 0.700
A19: 3.1 | B19: 0.588
A20: 3.4 | B20: 0.475
A21: 3.7 | B21: 0.363
A22: 4.0 | B22: =-0.125*A22+0.75 -> 0.250
A23: =+A22+0.3 -> 4.3 | B23: 0.213
A24: 4.6 | B24: 0.175
A25: 4.9 | B25: 0.138
A26: 5.2 | B26: 0.100
A27: 5.5 | B27: 0.063
A28: =+A27+0.3 -> 5.8 | B28: 0.025
A29: 6.0 | B29: 0.000

Sheet 41-44
A1: nº de indicador: | B1: 41 | C1: función de transformación: | D1: CA=-0,446*(I^2)+1 | E1: 0<I<0,667
A2: Indicador: | B2: promedio diario del nivel de inmisión de Pb | D2: CA=-0,606*I+1,21 | E2: 0,667<I<1,33
A3: fórmula del indicador | D3: CA=0,337*(I^2)-1,35*I+1,6 | E3: 1,33<I<2
A4: unidad del indicador: | B4: mg m-3
A5: rango de valores del indicador: | B5: 0 - 2 | C5: valor del indicador | D5: 2
A6: Tipo de indicador | B6: 2 (T=0,25) | C6: calidad ambiental | D6: =IF(D5<0,"valor del indicador fuera de rango",IF(D5<=0.667,-0.446*(D5^2)+1,IF(D5<=1.33,-0.606*D5+1.21,IF(D5<=2,(0.337*D5^2)-(1.35*D5)+1.6,"valor del indicador fuera del rango")))) -> 0.248
A7: valor del indicador | B7: calidad ambiental | C7: representación de la función de transformación
A8: 0.0 | B8: =(-0.446*A8^2)+ 1 -> 1.000
A9: 0.1 | B9: 0.996
A10: 0.2 | B10: 0.982
A11: 0.3 | B11: 0.960
A12: 0.4 | B12: 0.929
A13: 0.5 | B13: 0.889
A14: 0.6 | B14: 0.839
A15: 0.7 | B15: =-0.606*A15+ 1.21 -> 0.786
A16: 0.8 | B16: 0.725
A17: 0.9 | B17: 0.665
A18: 1.0 | B18: 0.604
A19: 1.1 | B19: 0.543
A20: 1.2 | B20: 0.483
A21: 1.4 | B21: =(0.337*A21^2)-1.35*A21+1.6 -> 0.371
A22: 1.6 | B22: =(0.337*A22^2)-1.35*A22+1.6 -> 0.303
A23: 1.8 | B23: =(0.337*A23^2)-1.35*A23+1.6 -> 0.262
A24: 2.0 | B24: =(0.337*A24^2)-1.35*A24+1.6 -> 0.248
A27: nº de indicador: | B27: 42 | C27: función de transformación: | D27: CA=-0,446*(I^2)+1 | E27: 0<I<0,667
A28: Indicador: | B28: ponderación del nivel diario de inmisión de Pb según la superficie de zonas homogéneas | D28: CA=-0,606*I+1,21 | E28: 0,667<I<1,33
A29: fórmula del indicador | D29: CA=0,337*(I^2)-1,35*I+1,6 | E29: 1,33<I<2
A30: unidad del indicador: | B30: mg m-3
A31: rango de valores del indicador: | B31: 0 - 2 | C31: valor del indicador | D31: 2
A32: Tipo de indicador | B32: 2 (T=0,25) | C32: calidad ambiental | D32: =IF(D31<0,"valor del indicador fuera de rango",IF(D31<=0.667,-0.446*(D31^2)+1,IF(D31<=1.33,-0.606*D31+1.21,IF(D31<=2,(0.337*D31^2)-(1.35*D31)+1.6,"valor del indicador fuera del rango")))) -> 0.248
A33: valor del indicador | B33: calidad ambiental | C33: representación de la función de transformación
A34: 0.0 | B34: =(-0.446*A34^2)+ 1 -> 1.000
A35: 0.1 | B35: 0.996
A36: 0.2 | B36: 0.982
A37: 0.3 | B37: 0.960
A38: 0.4 | B38: 0.929
A39: 0.5 | B39: 0.889
A40: 0.6 | B40: 0.839
A41: 0.7 | B41: =-0.606*A41+ 1.21 -> 0.786
A42: 0.8 | B42: 0.725
A43: 0.9 | B43: 0.665
A44: 1.0 | B44: 0.604
A45: 1.1 | B45: 0.543
A46: 1.2 | B46: 0.483
A47: 1.4 | B47: =(0.337*A47^2)-1.35*A47+1.6 -> 0.371
A48: 1.5 | B48: 0.333
A49: 1.6 | B49: 0.303
A50: 1.8 | B50: 0.262
A51: 1.9 | B51: 0.252
A52: 2.0 | B52: 0.248
A55: nº de indicador: | B55: 43 | C55: función de transformación: | D55: CA=-0,446*(I^2)+1 | E55: 0<I<0,667
A56: Indicador: | B56: ponderación del nivel diario de inmisión de Pb según la población afectada en cada zona | D56: CA=-0,606*I+1,21 | E56: 0,667<I<1,33
A57: fórmula del indicador | D57: CA=0,337*(I^2)-1,35*I+1,6 | E57: 1,33<I<2
A58: unidad del indicador: | B58: mg m-3
A59: rango de valores del indicador: | B59: 0 - 2 | C59: valor del indicador | D59: 2
A60: Tipo de indicador | B60: 2 (T=0,25) | C60: calidad ambiental | D60: =IF(D59<0,"valor del indicador fuera de rango",IF(D59<=0.667,-0.446*(D59^2)+1,IF(D59<=1.33,-0.606*D59+1.21,IF(D59<=2,(0.337*D59^2)-(1.35*D59)+1.6,"valor del indicador fuera del rango")))) -> 0.248
A61: valor del indicador | B61: calidad ambiental | C61: representación de la función de transformación
A62: 0.0 | B62: =(-0.446*A62^2)+ 1 -> 1.000
A63: 0.1 | B63: 0.996
A64: 0.2 | B64: 0.982
A65: 0.3 | B65: 0.960
A66: 0.4 | B66: 0.929
A67: 0.5 | B67: 0.889
A68: 0.6 | B68: 0.839
A69: 0.7 | B69: =-0.606*A69+ 1.21 -> 0.786
A70: 0.8 | B70: 0.725
A71: 0.9 | B71: 0.665
A72: 1.0 | B72: 0.604
A73: 1.1 | B73: 0.543
A74: 1.2 | B74: 0.483
A75: 1.4 | B75: =(0.337*A75^2)-1.35*A75+1.6 -> 0.371
A76: 1.5 | B76: 0.333
A77: 1.6 | B77: 0.303
A78: 1.8 | B78: 0.262
A79: 1.9 | B79: 0.252
A80: 2.0 | B80: 0.248
A83: nº de indicador: | B83: 44 | C83: función de transformación: | D83: CA=-1E-02*I+1 | E83: 0<I<100
A84: Indicador: | B84: % de personas afectadas por niveles de Pb perjudiciales
A85: fórmula del indicador
A86: unidad del indicador: | B86: %
A87: rango de valores del indicador: | B87: 0 - 100 | C87: valor del indicador | D87: 50
A88: Tipo de indicador | B88: 2 (T=0,25) | C88: calidad ambiental | D88: =IF(D87<0,"valor del indicador fuera de rango",IF(D87<=100,-0.01*D87+1,IF(D87>=100,"valor del indicador fuera de rango"))) -> 0.500
A89: valor del indicador | B89: calidad ambiental | C89: representación de la función de transformación
A90: 0 | B90: =-0.01*A90+1 -> 1.000
A91: 5 | B91: 0.950
A92: 10 | B92: 0.900
A93: 15 | B93: 0.850
A94: 20 | B94: 0.800
A95: 25 | B95: 0.750
A96: 30 | B96: 0.700
A97: 35 | B97: 0.650
A98: 40 | B98: 0.600
A99: 45 | B99: 0.550
A100: 50 | B100: 0.500
A101: 55 | B101: 0.450
A102: 60 | B102: 0.400
A103: 65 | B103: 0.350
A104: 70 | B104: 0.300
A105: 80 | B105: 0.200
A106: 90 | B106: 0.100
A107: 100 | B107: 0.000
